fUST/lending_fUST_20250911
["ID","MTS","AMOUNT","RATE_DAILY","PERIOD"]
[384863048,1757598659281,-480.0,0.00014246,2]
[384863049,1757598659290,-480.0,0.00014246,2]
[384863050,1757598659300,-151.0,0.00014246,2]
[384863051,1757598659309,-532.04,0.00014246,2]
[384863052,1757598659318,-480.0,0.00014246,2]
[384863053,1757598659329,-480.0,0.00014246,2]
[384863054,1757598659339,-480.0,0.00014246,2]
[384863055,1757598659348,-480.0,0.00014246,2]
[384863056,1757598659358,-480.0,0.00014246,2]
[384863057,1757598659367,-480.0,0.00014246,2]
[384863058,1757598659376,-480.0,0.00014246,2]
[384863059,1757598659386,-480.0,0.00014246,2]
[384863060,1757598659395,-617.77,0.00014246,2]
[384863061,1757598659404,-253.23714203,0.00014246,2]
[384863062,1757598659413,-321.72077151,0.00014246,2]
[384863063,1757598659422,-151.0,0.00014246,2]
[384863064,1757598659431,-480.0,0.00014246,2]
[384863065,1757598659441,-151.0,0.00014246,2]
[384863066,1757598659450,-151.0,0.00014246,2]
[384863067,1757598659459,-480.0,0.00014246,2]
[384863068,1757598659469,-480.0,0.00014246,2]
[384863069,1757598659478,-480.0,0.00014246,2]
[384863070,1757598659487,-480.0,0.00014246,2]
[384863071,1757598659497,-480.0,0.00014246,2]
[384863072,1757598659506,-480.0,0.00014246,2]
[384863073,1757598659515,-480.0,0.00014246,2]
[384863074,1757598659525,-480.0,0.00014246,2]
[384863075,1757598659534,-480.0,0.00014246,2]
[384863076,1757598659543,-515.58,0.00014246,2]
[384863077,1757598659553,-480.0,0.00014246,2]
[384863078,1757598659562,-480.0,0.00014246,2]
[384863079,1757598659571,-480.0,0.00014246,2]
[384863080,1757598659582,-480.0,0.00014246,2]
[384863081,1757598659591,-552.04,0.00014246,2]
[384863082,1757598659601,-480.0,0.00014246,2]
[384863083,1757598659611,-480.0,0.00014246,2]
[384863084,1757598659621,-151.0,0.00014246,2]
[384863085,1757598659632,-151.0,0.00014246,2]
[384863086,1757598659641,-151.0,0.00014246,2]
[384863087,1757598659651,-480.0,0.00014246,2]
[384863088,1757598659660,-480.0,0.00014246,2]
[384863089,1757598659669,-480.0,0.00014246,2]
[384863090,1757598659678,-480.0,0.00014246,2]
[384863091,1757598659688,-480.0,0.00014246,2]
[384863092,1757598659697,-480.0,0.00014246,2]
[384863093,1757598659707,-151.0,0.00014246,2]
[384863094,1757598659716,-597.58695898,0.00014246,2]
[384863095,1757598659725,-151.0,0.00014246,2]
[384863096,1757598659734,-480.0,0.00014246,2]
[384863097,1757598659744,-814.350323,0.00014246,2]
[384863098,1757598659753,-480.0,0.00014246,2]
[384863099,1757598659762,-814.350323,0.00014246,2]
[384863100,1757598659771,-814.350323,0.00014246,2]
[384863101,1757598659781,-814.35032872,0.00014246,2]
[384863102,1757598659790,-480.0,0.00014246,2]
[384863103,1757598659799,-480.0,0.00014246,2]
[384863104,1757598659809,-480.0,0.00014246,2]
[384863105,1757598659818,-480.0,0.00014246,2]
[384863106,1757598659828,-480.0,0.00014246,2]
[384863107,1757598659837,-480.0,0.00014246,2]
[384863108,1757598659847,-480.0,0.00014246,2]
[384863109,1757598659857,-641.87,0.00014246,2]
[384863110,1757598659867,-480.0,0.00014246,2]
[384863111,1757598659876,-480.0,0.00014246,2]
[384863112,1757598659887,-480.0,0.00014246,2]
[384863113,1757598659896,-480.0,0.00014246,2]
[384863114,1757598659906,-480.0,0.00014246,2]
[384863115,1757598659914,-480.0,0.00014246,2]
[384863116,1757598659923,-480.0,0.00014246,2]
[384863117,1757598659934,-480.0,0.00014246,2]
[384863118,1757598659943,-151.0,0.00014246,2]
[384863119,1757598659952,-480.0,0.00014246,2]
[384863120,1757598659962,-480.0,0.00014246,2]
[384863121,1757598659972,-480.0,0.00014246,2]
[384863122,1757598659981,-480.0,0.00014246,2]
[384863123,1757598659990,-480.0,0.00014246,2]
[384863124,1757598660000,-620.08,0.00014246,2]
[384863125,1757598660010,-480.0,0.00014246,2]
[384863126,1757598660019,-480.0,0.00014246,2]
[384863127,1757598660029,-480.0,0.00014246,2]
[384863128,1757598660038,-929.63,0.00014246,2]
[384863129,1757598660048,-480.0,0.00014246,2]
[384863130,1757598660058,-472.73,0.00014246,2]
[384863131,1757598660069,-2742.66,0.00014246,2]
[384863132,1757598660079,-480.0,0.00014246,2]
[384863133,1757598660089,-480.0,0.00014246,2]
[384863134,1757598660098,-224.507931,0.00014246,2]
[384863135,1757598660107,-679.1,0.00014246,2]
[384863136,1757598660116,-605.15480917,0.00014246,2]
[384863137,1757598660126,-224.507931,0.00014246,2]
[384863138,1757598660136,-844.75,0.00014246,2]
[384863139,1757598660146,-224.507931,0.00014246,2]
[384863140,1757598660155,-1458.01,0.00014246,2]
[384863141,1757598660164,-224.507924,0.00014246,2]
[384863142,1757598660175,-4276.44,0.00014246,2]
[384863143,1757598660184,-480.0,0.00014246,2]
[384863144,1757598660198,-480.0,0.00014246,2]
[384863145,1757598660208,-162.229263,0.00014246,2]
[384863146,1757598660218,-162.229263,0.00014246,2]
[384863147,1757598660227,-480.0,0.00014246,2]
[384863148,1757598660238,-162.229263,0.00014246,2]
[384863149,1757598660248,-480.0,0.00014246,2]
[384863150,1757598660258,-1218.49,0.00014246,2]
[384863151,1757598660269,-162.229268,0.00014246,2]
[384863152,1757598660278,-629.89,0.00014246,2]
[384863153,1757598660288,-575.78,0.00014246,2]
[384863154,1757598660297,-531.52,0.00014246,2]
[384863155,1757598660307,-873.55,0.00014246,2]
[384863156,1757598660317,-1193.43,0.00014246,2]
[384863157,1757598660329,-480.0,0.00014246,2]
[384863158,1757598660338,-480.0,0.00014246,2]
[384863159,1757598660348,-885.43,0.00014246,2]
[384863160,1757598660359,-480.0,0.00014246,2]
[384863161,1757598660370,-480.0,0.00014246,2]
[384863162,1757598660381,-266.871369,0.00014246,2]
[384863163,1757598660391,-266.871369,0.00014246,2]
[384863164,1757598660400,-266.871369,0.00014246,2]
[384863165,1757598660410,-266.871376,0.00014246,2]
[384863166,1757598660420,-480.0,0.00014246,2]
[384863167,1757598660429,-832.52,0.00014246,2]
[384863168,1757598660439,-480.0,0.00014246,2]
[384863169,1757598660448,-480.0,0.00014246,2]
[384863170,1757598660457,-1697.8,0.00014246,2]
[384863171,1757598660466,-480.0,0.00014246,2]
[384863172,1757598660475,-480.0,0.00014246,2]
[384863173,1757598660485,-480.0,0.00014246,2]
[384863174,1757598660494,-480.0,0.00014246,2]
[384863175,1757598660503,-151.0,0.00014246,2]
[384863176,1757598660512,-480.0,0.00014246,2]
[384863177,1757598660522,-480.0,0.00014246,2]
[384863178,1757598660531,-151.0,0.00014246,2]
[384863179,1757598660540,-480.0,0.00014246,2]
[384863180,1757598660550,-494.63,0.00014246,2]
[384863181,1757598660559,-1648.8,0.00014246,2]
[384863182,1757598660568,-480.0,0.00014246,2]
[384863183,1757598660581,-506.33,0.00014246,2]
[384863184,1757598660590,-480.0,0.00014246,2]
[384863185,1757598660599,-250.979388,0.00014246,2]
[384863186,1757598660608,-250.979388,0.00014246,2]
[384863187,1757598660618,-480.0,0.00014246,2]
[384863188,1757598660627,-480.0,0.00014246,2]
[384863189,1757598660636,-151.0,0.00014246,2]
[384863190,1757598660646,-250.979388,0.00014246,2]
[384863191,1757598660655,-151.0,0.00014246,2]
[384863192,1757598660664,-480.0,0.00014246,2]
[384863193,1757598660673,-480.0,0.00014246,2]
[384863194,1757598660683,-250.979395,0.00014246,2]
[384863195,1757598660692,-480.0,0.00014246,2]
[384863196,1757598660701,-480.0,0.00014246,2]
[384863197,1757598660711,-494.79338197,0.00014246,2]
[384863198,1757598660720,-480.0,0.00014246,2]
[384863199,1757598660729,-480.0,0.00014246,2]
[384863200,1757598660739,-480.0,0.00014246,2]
[384863201,1757598660748,-245.83682461,0.00014246,2]
[384863202,1757598660757,-480.0,0.00014246,2]
[384863203,1757598660767,-480.0,0.00014246,2]
[384863204,1757598660776,-480.0,0.00014246,2]
[384863205,1757598660785,-480.0,0.00014246,2]
[384863206,1757598660794,-1037.22,0.00014246,2]
[384863207,1757598660804,-294.207479,0.00014246,2]
[384863208,1757598660813,-1926.16,0.00014246,2]
[384863209,1757598660823,-1003.23,0.00014246,2]
[384863210,1757598660834,-480.0,0.00014246,2]
[384863211,1757598660843,-151.0,0.00014246,2]
[384863212,1757598660853,-326.05753537,0.00014246,2]
[384863213,1757598660862,-480.0,0.00014246,2]
[384863214,1757598660871,-480.0,0.00014246,2]
[384863215,1757598660880,-480.0,0.00014246,2]
[384863216,1757598660890,-191.8,0.00014246,2]
[384863217,1757598660899,-480.0,0.00014246,2]
[384863218,1757598660909,-480.0,0.00014246,2]
[384863219,1757598660919,-480.0,0.00014246,2]
[384863220,1757598661009,-480.0,0.00014246,2]
[384863221,1757598661020,-480.0,0.00014246,2]
[384863222,1757598661030,-958.94,0.00014246,2]
[384863223,1757598661040,-480.0,0.00014246,2]
[384863224,1757598661049,-590.39,0.00014246,2]
[384863225,1757598661059,-314.16656547,0.00014246,2]
[384863226,1757598661068,-480.0,0.00014246,2]
[384863227,1757598661080,-480.0,0.00014246,2]
[384863228,1757598661090,-1813.61,0.00014246,2]
[384863229,1757598661100,-174.70156131,0.00014246,2]
[384863230,1757598661109,-480.0,0.00014246,2]
[384863231,1757598661118,-480.0,0.00014246,2]
[384863232,1757598661127,-480.0,0.00014246,2]
[384863233,1757598661136,-340.60723525,0.00014246,2]
[384863234,1757598661146,-480.0,0.00014246,2]
[384863235,1757598661155,-480.0,0.00014246,2]
[384863236,1757598661166,-480.0,0.00014246,2]
[384863237,1757598661175,-480.0,0.00014246,2]
[384863238,1757598661186,-2368.9,0.00014246,2]
[384863239,1757598661200,-480.0,0.00014246,2]
[384863240,1757598661210,-184.609804,0.00014246,2]
[384863241,1757598661222,-184.609804,0.00014246,2]
[384863242,1757598661231,-480.0,0.00014246,2]
[384863243,1757598661241,-184.609804,0.00014246,2]
[384863244,1757598661251,-184.609812,0.00014246,2]
[384863245,1757598661261,-480.0,0.00014246,2]
[384863246,1757598661271,-480.0,0.00014246,2]
[384863247,1757598661281,-480.0,0.00014246,2]
[384863248,1757598661290,-480.0,0.00014246,2]
[384863249,1757598661300,-480.0,0.00014246,2]
[384863250,1757598661310,-480.0,0.00014246,2]
[384863251,1757598661320,-4025.45,0.00014246,2]
[384863252,1757598661335,-480.0,0.00014246,2]
[384863253,1757598661344,-480.0,0.00014246,2]
[384863254,1757598661353,-480.0,0.00014246,2]
[384863255,1757598661362,-500.0,0.00014246,2]
[384863256,1757598661372,-500.41346576,0.00014273,2]
[384863257,1757598661381,-500.0,0.00014273,2]
[384863258,1757598661391,-500.0,0.00014273,2]
[384863259,1757598661400,-500.0,0.00014273,2]
[384863260,1757598661410,-500.77101783,0.00014273,2]
[384863261,1757598661419,-500.0,0.00014273,2]
[384863262,1757598661429,-500.0,0.00014273,2]
[384863263,1757598661438,-500.0,0.00014273,2]
[384863264,1757598661449,-500.0,0.00014273,2]
[384863265,1757598661459,-500.0,0.00014273,2]
[384863266,1757598661468,-151.0,0.000143,2]
[384863267,1757598661478,-779.59401353,0.00014349,2]
[384863268,1757598661487,-189.52,0.0001442,2]
[384863269,1757598661497,-2642.45573862,0.0001442,2]
[384863270,1757598661506,-151.0,0.000145,2]
[384863271,1757598661515,-151.0,0.000145,2]
[384863272,1757598661525,-500.0,0.00014519,2]
[384863273,1757598661534,-500.0,0.0001452,2]
[384863274,1757598661543,-459.0,0.0001452,2]
[384863275,1757598661553,-157.0,0.0001452,2]
[384863276,1757598661563,-157.0,0.0001452,2]
[384863277,1757598661572,-500.0,0.0001452,2]
[384863278,1757598661584,-500.0,0.0001452,2]
[384863279,1757598661593,-500.0,0.0001452,2]
[384863280,1757598661602,-500.0,0.0001452,2]
[384863281,1757598661612,-500.0,0.0001452,2]
[384863282,1757598661621,-157.0,0.0001452,2]
[384863283,1757598661631,-500.0,0.0001452,2]
[384863284,1757598661640,-480.0,0.0001452,2]
[384863285,1757598661650,-480.0,0.0001452,2]
[384863286,1757598661659,-480.0,0.0001452,2]
[384863287,1757598661668,-480.0,0.0001452,2]
[384863288,1757598661677,-480.0,0.0001452,2]
[384863289,1757598661687,-151.0,0.0001452,2]
[384863290,1757598661697,-480.0,0.0001452,2]
[384863291,1757598661706,-480.0,0.0001452,2]
[384863292,1757598661717,-558.19,0.0001452,2]
[384863293,1757598661727,-480.0,0.0001452,2]
[384863294,1757598661737,-480.0,0.0001452,2]
[384863295,1757598661746,-480.0,0.0001452,2]
[384863296,1757598661756,-480.0,0.0001452,2]
[384863297,1757598661765,-253.34915882,0.0001452,2]
[384863298,1757598661775,-480.0,0.0001452,2]
[384863299,1757598661785,-480.0,0.0001452,2]
[384863300,1757598661795,-591.0,0.0001452,2]
[384863301,1757598661805,-235.656175,0.0001452,2]
[384863302,1757598661814,-480.0,0.0001452,2]
[384863303,1757598661824,-480.0,0.0001452,2]
[384863304,1757598661837,-480.0,0.0001452,2]
[384863305,1757598661847,-480.0,0.0001452,2]
[384863306,1757598661856,-480.0,0.0001452,2]
[384863307,1757598661865,-151.0,0.0001452,2]
[384863308,1757598661874,-572.73,0.0001452,2]
[384863309,1757598661884,-151.0,0.0001452,2]
[384863310,1757598661894,-480.0,0.0001452,2]
[384863311,1757598661904,-480.0,0.0001452,2]
[384863312,1757598661913,-480.0,0.0001452,2]
[384863313,1757598661923,-480.0,0.0001452,2]
[384863314,1757598661933,-545.28,0.0001452,2]
[384863315,1757598661943,-226.03135729,0.0001452,2]
[384863316,1757598661952,-480.0,0.0001452,2]
[384863317,1757598661962,-532.04,0.0001452,2]
[384863318,1757598661971,-480.0,0.0001452,2]
[384863319,1757598661981,-480.0,0.0001452,2]
[384863320,1757598661991,-480.0,0.0001452,2]
[384863321,1757598662000,-479.85099434,0.0001452,2]
[384863322,1757598662009,-480.0,0.0001452,2]
[384863323,1757598662019,-480.0,0.0001452,2]
[384863324,1757598662028,-480.0,0.0001452,2]
[384863325,1757598662037,-480.0,0.0001452,2]
[384863326,1757598662047,-480.0,0.0001452,2]
[384863327,1757598662056,-480.0,0.0001452,2]
[384863328,1757598662065,-532.46962328,0.0001452,2]
[384863329,1757598662075,-480.0,0.0001452,2]
[384863330,1757598662087,-480.0,0.0001452,2]
[384863331,1757598662096,-480.0,0.0001452,2]
[384863332,1757598662105,-515.58,0.0001452,2]
[384863333,1757598662115,-480.0,0.0001452,2]
[384863334,1757598662124,-480.0,0.0001452,2]
[384863335,1757598662133,-480.0,0.0001452,2]
[384863336,1757598662143,-552.04,0.0001452,2]
[384863337,1757598662153,-480.0,0.0001452,2]
[384863338,1757598662163,-480.0,0.0001452,2]
[384863339,1757598662172,-480.0,0.0001452,2]
[384863340,1757598662182,-168.39498634,0.0001452,2]
[384863341,1757598662192,-480.0,0.0001452,2]
[384863342,1757598662207,-523.80806151,0.0001452,2]
[384863343,1757598662217,-575.51766451,0.0001452,2]
[384863344,1757598662226,-480.0,0.0001452,2]
[384863345,1757598662236,-480.0,0.0001452,2]
[384863346,1757598662244,-480.0,0.0001452,2]
[384863347,1757598662253,-480.0,0.0001452,2]
[384863348,1757598662263,-480.0,0.0001452,2]
[384863349,1757598662272,-641.87,0.0001452,2]
[384863350,1757598662281,-480.0,0.0001452,2]
[384863351,1757598662291,-480.0,0.0001452,2]
[384863352,1757598662300,-480.0,0.0001452,2]
[384863353,1757598662310,-480.0,0.0001452,2]
[384863354,1757598662320,-480.0,0.0001452,2]
[384863355,1757598662331,-480.0,0.0001452,2]
[384863356,1757598662340,-515.97,0.0001452,2]
[384863357,1757598662349,-516.19202587,0.0001452,2]
[384863358,1757598662359,-480.0,0.0001452,2]
[384863359,1757598662367,-480.0,0.0001452,2]
[384863360,1757598662376,-480.0,0.0001452,2]
[384863361,1757598662385,-620.08,0.0001452,2]
[384863362,1757598662394,-480.0,0.0001452,2]
[384863363,1757598662403,-480.0,0.0001452,2]
[384863364,1757598662412,-929.63,0.0001452,2]
[384863365,1757598662422,-2742.66,0.0001452,2]
[384863366,1757598662432,-480.0,0.0001452,2]
[384863367,1757598662441,-480.0,0.0001452,2]
[384863368,1757598662451,-679.1,0.0001452,2]
[384863369,1757598662460,-844.75,0.0001452,2]
[384863370,1757598662470,-1458.01,0.0001452,2]
[384863371,1757598662480,-4276.44,0.0001452,2]
[384863372,1757598662489,-480.0,0.0001452,2]
[384863373,1757598662499,-480.0,0.0001452,2]
[384863374,1757598662508,-1218.49,0.0001452,2]
[384863375,1757598662517,-629.89,0.0001452,2]
[384863376,1757598662527,-575.78,0.0001452,2]
[384863377,1757598662535,-531.52,0.0001452,2]
[384863378,1757598662544,-873.55,0.0001452,2]
[384863379,1757598662553,-1193.43,0.0001452,2]
[384863380,1757598662562,-480.0,0.0001452,2]
[384863381,1757598662571,-291.94544857,0.0001452,2]
[384863382,1757598662583,-885.43,0.0001452,2]
[384863383,1757598662592,-480.0,0.0001452,2]
[384863384,1757598662601,-480.0,0.0001452,2]
[384863385,1757598662610,-832.52,0.0001452,2]
[384863386,1757598662618,-480.0,0.0001452,2]
[384863387,1757598662627,-480.0,0.0001452,2]
[384863388,1757598662637,-1697.8,0.0001452,2]
[384863389,1757598662646,-225.52,0.0001452,2]
[384863390,1757598662654,-480.0,0.0001452,2]
[384863391,1757598662663,-480.0,0.0001452,2]
[384863392,1757598662672,-480.0,0.0001452,2]
[384863393,1757598662681,-480.0,0.0001452,2]
[384863394,1757598662768,-480.0,0.0001452,2]
[384863395,1757598662777,-1648.8,0.0001452,2]
[384863396,1757598662786,-480.0,0.0001452,2]
[384863397,1757598662795,-506.33,0.0001452,2]
[384863398,1757598662804,-480.0,0.0001452,2]
[384863399,1757598662813,-480.0,0.0001452,2]
[384863400,1757598662822,-480.0,0.0001452,2]
[384863401,1757598662833,-480.0,0.0001452,2]
[384863402,1757598662842,-480.0,0.0001452,2]
[384863403,1757598662851,-512.9,0.0001452,2]
[384863404,1757598662860,-480.0,0.0001452,2]
[384863405,1757598662869,-480.0,0.0001452,2]
[384863406,1757598662878,-480.0,0.0001452,2]
[384863407,1757598662887,-480.0,0.0001452,2]
[384863408,1757598662896,-480.0,0.0001452,2]
[384863409,1757598662905,-1037.22,0.0001452,2]
[384863410,1757598662914,-1926.16,0.0001452,2]
[384863411,1757598662924,-1003.23,0.0001452,2]
[384863412,1757598662933,-480.0,0.0001452,2]
[384863413,1757598662943,-480.0,0.0001452,2]
[384863414,1757598662951,-480.0,0.0001452,2]
[384863415,1757598662961,-480.0,0.0001452,2]
[384863416,1757598662970,-480.0,0.0001452,2]
[384863417,1757598662979,-480.0,0.0001452,2]
[384863418,1757598662988,-480.0,0.0001452,2]
[384863419,1757598662997,-480.0,0.0001452,2]
[384863420,1757598663006,-480.0,0.0001452,2]
[384863421,1757598663015,-958.94,0.0001452,2]
[384863422,1757598663024,-480.0,0.0001452,2]
[384863423,1757598663033,-590.39,0.0001452,2]
[384863424,1757598663043,-609.48,0.0001452,2]
[384863425,1757598663052,-480.0,0.0001452,2]
[384863426,1757598663061,-1813.61,0.0001452,2]
[384863427,1757598663070,-480.0,0.0001452,2]
[384863428,1757598663080,-480.0,0.0001452,2]
[384863429,1757598663090,-480.0,0.0001452,2]
[384863430,1757598663101,-480.0,0.0001452,2]
[384863431,1757598663111,-2368.9,0.0001452,2]
[384863432,1757598663121,-480.0,0.0001452,2]
[384863433,1757598663131,-480.0,0.0001452,2]
[384863434,1757598663143,-480.0,0.0001452,2]
[384863435,1757598663156,-480.0,0.0001452,2]
[384863436,1757598663165,-480.0,0.0001452,2]
[384863437,1757598663175,-480.0,0.0001452,2]
[384863438,1757598663184,-4025.45,0.0001452,2]
[384863439,1757598663194,-480.0,0.0001452,2]
[384863440,1757598663206,-1000.0,0.00014521,2]
[384863441,1757598663215,-507.0775955,0.00014521,2]
[384863442,1757598663225,-224.00413501,0.00014521,2]
[384863443,1757598663234,-198.30363012,0.00014521,2]
[384863444,1757598663245,-500.0,0.00014521,2]
[384863445,1757598663255,-500.0,0.00014521,2]
[384863446,1757598663264,-513.86671953,0.00014521,2]
[384863447,1757598663274,-500.0,0.00014521,2]
[384863448,1757598663283,-964.37685251,0.00014521,2]
[384863449,1757598663293,-500.0,0.00014521,2]
[384863450,1757598663302,-500.0,0.00014521,2]
[384863451,1757598663311,-500.0,0.00014521,2]
[384863452,1757598663321,-500.0,0.00014521,2]
[384863453,1757598663331,-347.04780642,0.00014521,2]
[384863454,1757598663341,-1000.7176111,0.00014521,2]
[384863455,1757598663350,-500.0,0.00014521,2]
[384863456,1757598663359,-500.0,0.00014521,2]
[384863457,1757598663369,-500.0,0.00014521,2]
[384863458,1757598663378,-160.07299748,0.00014573,2]
[384863459,1757598663388,-504.28103578,0.00014573,2]
[384863460,1757598663397,-500.0,0.00014573,2]
[384863461,1757598663406,-151.0,0.000146,2]
[384863462,1757598663416,-151.0,0.000147,2]
[384863463,1757598663425,-425.66528365,0.00014711,2]
[384863464,1757598663435,-500.0,0.00014711,2]
[384863465,1757598663444,-500.0,0.00014711,2]
[384863466,1757598663453,-500.0,0.00014711,2]
[384863467,1757598663463,-504.06962117,0.00014711,2]
[384863468,1757598663472,-186.0,0.00014793,2]
[384863469,1757598663481,-500.0,0.00014794,2]
[384863470,1757598663490,-157.0,0.00014794,2]
[384863471,1757598663500,-500.0,0.00014794,2]
[384863472,1757598663509,-186.0,0.00014794,2]
[384863473,1757598663518,-186.0,0.00014794,2]
[384863474,1757598663528,-500.0,0.00014794,2]
[384863475,1757598663537,-500.0,0.00014794,2]
[384863476,1757598663547,-157.0,0.00014794,2]
[384863477,1757598663556,-480.0,0.00014794,2]
[384863478,1757598663565,-480.0,0.00014794,2]
[384863479,1757598663574,-480.0,0.00014794,2]
[384863480,1757598663586,-558.19,0.00014794,2]
[384863481,1757598663596,-480.0,0.00014794,2]
[384863482,1757598663606,-238.48303234,0.00014794,2]
[384863483,1757598663616,-591.0,0.00014794,2]
[384863484,1757598663625,-480.0,0.00014794,2]
[384863485,1757598663634,-480.0,0.00014794,2]
[384863486,1757598663644,-480.0,0.00014794,2]
[384863487,1757598663653,-480.0,0.00014794,2]
[384863488,1757598663663,-572.73,0.00014794,2]
[384863489,1757598663672,-480.0,0.00014794,2]
[384863490,1757598663682,-480.0,0.00014794,2]
[384863491,1757598663691,-480.0,0.00014794,2]
[384863492,1757598663701,-532.04,0.00014794,2]
[384863493,1757598663710,-480.0,0.00014794,2]
[384863494,1757598663720,-480.0,0.00014794,2]
[384863495,1757598663729,-480.0,0.00014794,2]
[384863496,1757598663739,-480.0,0.00014794,2]
[384863497,1757598663748,-480.0,0.00014794,2]
[384863498,1757598663758,-480.0,0.00014794,2]
[384863499,1757598663768,-515.58,0.00014794,2]
[384863500,1757598663779,-480.0,0.00014794,2]
[384863501,1757598663789,-509.73057531,0.00014794,2]
[384863502,1757598663799,-556.02,0.00014794,2]
[384863503,1757598663809,-552.04,0.00014794,2]
[384863504,1757598663819,-480.0,0.00014794,2]
[384863505,1757598663831,-480.0,0.00014794,2]
[384863506,1757598663841,-480.0,0.00014794,2]
[384863507,1757598663852,-480.0,0.00014794,2]
[384863508,1757598663862,-480.0,0.00014794,2]
[384863509,1757598663872,-480.0,0.00014794,2]
[384863510,1757598663883,-480.0,0.00014794,2]
[384863511,1757598663894,-641.87,0.00014794,2]
[384863512,1757598663904,-356.83,0.00014794,2]
[384863513,1757598663914,-480.0,0.00014794,2]
[384863514,1757598663924,-480.0,0.00014794,2]
[384863515,1757598663934,-480.0,0.00014794,2]
[384863516,1757598663944,-480.0,0.00014794,2]
[384863517,1757598663954,-480.0,0.00014794,2]
[384863518,1757598663964,-620.08,0.00014794,2]
[384863519,1757598663975,-480.0,0.00014794,2]
[384863520,1757598663986,-480.0,0.00014794,2]
[384863521,1757598663996,-929.63,0.00014794,2]
[384863522,1757598664006,-2742.66,0.00014794,2]
[384863523,1757598664016,-480.0,0.00014794,2]
[384863524,1757598664026,-679.1,0.00014794,2]
[384863525,1757598664035,-844.75,0.00014794,2]
[384863526,1757598664045,-1458.01,0.00014794,2]
[384863527,1757598664055,-4276.44,0.00014794,2]
[384863528,1757598664064,-480.0,0.00014794,2]
[384863529,1757598664074,-480.0,0.00014794,2]
[384863530,1757598664089,-1218.49,0.00014794,2]
[384863531,1757598664098,-629.89,0.00014794,2]
[384863532,1757598664108,-575.78,0.00014794,2]
[384863533,1757598664117,-531.52,0.00014794,2]
[384863534,1757598664127,-873.55,0.00014794,2]
[384863535,1757598664137,-1193.43,0.00014794,2]
[384863536,1757598664146,-885.43,0.00014794,2]
[384863537,1757598664156,-480.0,0.00014794,2]
[384863538,1757598664166,-832.52,0.00014794,2]
[384863539,1757598664177,-330.74,0.00014794,2]
[384863540,1757598664188,-1697.8,0.00014794,2]
[384863541,1757598664203,-480.0,0.00014794,2]
[384863542,1757598664212,-480.0,0.00014794,2]
[384863543,1757598664222,-1648.8,0.00014794,2]
[384863544,1757598664232,-480.0,0.00014794,2]
[384863545,1757598664241,-506.33,0.00014794,2]
[384863546,1757598664252,-480.0,0.00014794,2]
[384863547,1757598664261,-480.0,0.00014794,2]